[Event "Titled Tuesday Blitz August 3 2021"]
[White "Heinemann, Josefine"]
[Black "Shyaamnikhil P"]
[WhiteFideId "12900460"]
[BlackFideId "5024218"]
[WhiteElo "2300"]
[BlackElo "2300"]
[Result "0-1"]
[Round "02"]
[TimeControl "180+1"]
[Date "2021.08.03"]
[WhiteClock "0:00:07"]
[BlackClock "0:00:19"]

1. Nf3 {[%clk 0:03:00]}  Nf6 {[%clk 0:02:58]} 2. g3 {[%clk 0:03:00]}  g6 {[%clk 0:02:58]} 3. Bg2 {[%clk 0:02:59]}  Bg7 {[%clk 0:02:58]} 4. O-O {[%clk 0:03:00]}  O-O {[%clk 0:02:58]} 5. d4 {[%clk 0:03:00]}  c6 {[%clk 0:02:56]} 6. c4 {[%clk 0:02:59]}  d5 {[%clk 0:02:53]} 7. cxd5 {[%clk 0:02:59]}  cxd5 {[%clk 0:02:53]} 8. Ne5 {[%clk 0:02:59]}  Ng4 {[%clk 0:02:49]} 9. Nxg4 {[%clk 0:02:51]}  Bxg4 {[%clk 0:02:50]} 10. Nc3 {[%clk 0:02:51]}  Nc6 {[%clk 0:02:48]} 11. Nxd5 {[%clk 0:02:34]}  Nxd4 {[%clk 0:02:47]} 12. Nc3 {[%clk 0:02:28]}  Nxe2+ {[%clk 0:02:43]} 13. Nxe2 {[%clk 0:02:27]}  Qxd1 {[%clk 0:02:42]} 14. Rxd1 {[%clk 0:02:27]}  Bxe2 {[%clk 0:02:43]} 15. Re1 {[%clk 0:02:26]}  Ba6 {[%clk 0:02:42]} 16. Rxe7 {[%clk 0:02:19]}  Rad8 {[%clk 0:02:34]} 17. Re1 {[%clk 0:02:18]}  h5 {[%clk 0:02:29]} 18. Bf1 {[%clk 0:01:59]}  Bxf1 {[%clk 0:02:25]} 19. Kxf1 {[%clk 0:02:00]}  Rc8 {[%clk 0:02:13]} 20. Rb1 {[%clk 0:01:55]}  Rc2 {[%clk 0:02:12]} 21. a4 {[%clk 0:01:34]}  Rfc8 {[%clk 0:02:09]} 22. b3 {[%clk 0:01:30]}  Bc3 {[%clk 0:01:57]} 23. Re2 {[%clk 0:01:14]}  Bd4 {[%clk 0:01:41]} 24. Be3 {[%clk 0:01:10]}  Rxe2 {[%clk 0:01:36]} 25. Kxe2 {[%clk 0:01:10]}  Bxe3 {[%clk 0:01:36]} 26. Kxe3 {[%clk 0:01:10]}  Rc2 {[%clk 0:01:34]} 27. h4 {[%clk 0:01:07]}  Kf8 {[%clk 0:01:30]} 28. f3 {[%clk 0:01:01]}  Ke7 {[%clk 0:01:27]} 29. Kf4 {[%clk 0:01:01]}  Rc3 {[%clk 0:01:17]} 30. g4 {[%clk 0:00:51]}  Kf6 {[%clk 0:01:11]} 31. a5 {[%clk 0:00:42]}  a6 {[%clk 0:01:08]} 32. b4 {[%clk 0:00:40]}  Rc4+ {[%clk 0:01:07]} 33. Kg3 {[%clk 0:00:40]}  Ke5 {[%clk 0:01:02]} 34. Re1+ {[%clk 0:00:38]}  Kd6 {[%clk 0:01:01]} 35. Rd1+ {[%clk 0:00:36]}  Kc6 {[%clk 0:01:00]} 36. gxh5 {[%clk 0:00:31]}  gxh5 {[%clk 0:00:59]} 37. Re1 {[%clk 0:00:30]}  Rxb4 {[%clk 0:00:55]} 38. Re7 {[%clk 0:00:30]}  Rb5 {[%clk 0:00:55]} 39. Rxf7 {[%clk 0:00:30]}  Rxa5 {[%clk 0:00:55]} 40. Rf6+ {[%clk 0:00:31]}  Kc7 {[%clk 0:00:52]} 41. Rf7+ {[%clk 0:00:30]}  Kb8 {[%clk 0:00:48]} 42. f4 {[%clk 0:00:29]}  Ra3+ {[%clk 0:00:41]} 43. Kg2 {[%clk 0:00:29]}  a5 {[%clk 0:00:39]} 44. f5 {[%clk 0:00:29]}  Ra4 {[%clk 0:00:38]} 45. Kh3 {[%clk 0:00:18]}  Rf4 {[%clk 0:00:32]} 46. Kg3 {[%clk 0:00:18]}  Rg4+ {[%clk 0:00:32]} 47. Kh3 {[%clk 0:00:18]}  a4 {[%clk 0:00:32]} 48. f6 {[%clk 0:00:19]}  a3 {[%clk 0:00:30]} 49. Re7 {[%clk 0:00:11]}  Rf4 {[%clk 0:00:23]} 50. Re3 {[%clk 0:00:09]}  a2 {[%clk 0:00:21]} 51. Re1 {[%clk 0:00:09]}  Rxf6 {[%clk 0:00:19]} 52. Ra1 {[%clk 0:00:07]}  Ra6 {[%clk 0:00:19]} 0-1


[Site "https://www.chess.com"]

[Event "Titled Tuesday Blitz August 3 2021"]
[White "Hryshchenko, Kamila"]
[Black "Siva Mahadevan"]
[WhiteFideId "14147491"]
[BlackFideId "25043153"]
[WhiteElo "1966"]
[BlackElo "2203"]
[Result "0-1"]
[Round "02"]
[TimeControl "180+1"]
[Date "2021.08.03"]
[WhiteClock "0:00:19"]
[BlackClock "0:00:15"]

1. g3 {[%clk 0:03:00]}  d5 {[%clk 0:02:57]} 2. Bg2 {[%clk 0:03:01]}  e5 {[%clk 0:02:56]} 3. d4 {[%clk 0:03:01]}  exd4 {[%clk 0:02:49]} 4. Qxd4 {[%clk 0:03:02]}  c6 {[%clk 0:02:49]} 5. Bf4 {[%clk 0:02:57]}  Nf6 {[%clk 0:02:34]} 6. Nc3 {[%clk 0:02:56]}  Nbd7 {[%clk 0:02:28]} 7. O-O-O {[%clk 0:02:55]}  Bc5 {[%clk 0:02:26]} 8. Qd2 {[%clk 0:02:47]}  Qa5 {[%clk 0:02:23]} 9. Kb1 {[%clk 0:02:41]}  Qa6 {[%clk 0:01:46]} 10. e4 {[%clk 0:02:34]}  dxe4 {[%clk 0:01:35]} 11. Bd6 {[%clk 0:02:19]}  Qb6 {[%clk 0:01:25]} 12. Bxe4 {[%clk 0:02:07]}  Bxd6 {[%clk 0:01:21]} 13. Qxd6 {[%clk 0:02:08]}  Qc5 {[%clk 0:01:20]} 14. Qf4 {[%clk 0:01:55]}  O-O {[%clk 0:01:14]} 15. Nf3 {[%clk 0:01:52]}  Nb6 {[%clk 0:01:08]} 16. Ng5 {[%clk 0:01:44]}  h6 {[%clk 0:01:04]} 17. h4 {[%clk 0:01:34]}  Nc4 {[%clk 0:01:02]} 18. Bd3 {[%clk 0:01:27]}  Ne5 {[%clk 0:00:42]} 19. Nce4 {[%clk 0:01:23]}  Nxd3 {[%clk 0:00:36]} 20. Nxf6+ {[%clk 0:01:16]}  gxf6 {[%clk 0:00:36]} 21. Rxd3 {[%clk 0:00:39]}  fxg5 {[%clk 0:00:34]} 22. Qf6 {[%clk 0:00:37]}  Qf5 {[%clk 0:00:19]} 23. Qxh6 {[%clk 0:00:28]}  g4 {[%clk 0:00:16]} 24. Rd4 {[%clk 0:00:25]}  Be6 {[%clk 0:00:15]} 25. Rf4 {[%clk 0:00:24]}  Qd5 {[%clk 0:00:15]} 26. Rc1 {[%clk 0:00:19]}  Qxa2# {[%clk 0:00:15]} 0-1


[Site "https://www.chess.com"]

[Event "Titled Tuesday Blitz August 3 2021"]
[White "Indjic, Aleksandar"]
[Black "Siniauski, Artsiom"]
[WhiteFideId "911925"]
[BlackFideId "13512269"]
[WhiteElo "2643"]
[BlackElo "2210"]
[Result "1-0"]
[Round "02"]
[TimeControl "180+1"]
[Date "2021.08.03"]
[WhiteClock "0:01:35"]
[BlackClock "0:00:42"]

1. d4 {[%clk 0:03:00]}  Nf6 {[%clk 0:02:59]} 2. Nf3 {[%clk 0:03:00]}  b6 {[%clk 0:02:58]} 3. Bg5 {[%clk 0:03:00]}  Bb7 {[%clk 0:02:56]} 4. Nbd2 {[%clk 0:03:00]}  e6 {[%clk 0:02:55]} 5. e4 {[%clk 0:02:58]}  Be7 {[%clk 0:02:55]} 6. Bd3 {[%clk 0:02:55]}  d5 {[%clk 0:02:55]} 7. e5 {[%clk 0:02:54]}  Nfd7 {[%clk 0:02:55]} 8. h4 {[%clk 0:02:51]}  h6 {[%clk 0:02:54]} 9. Bxe7 {[%clk 0:02:46]}  Qxe7 {[%clk 0:02:55]} 10. Qe2 {[%clk 0:02:40]}  c5 {[%clk 0:02:55]} 11. c3 {[%clk 0:02:41]}  a5 {[%clk 0:02:52]} 12. O-O {[%clk 0:02:38]}  cxd4 {[%clk 0:02:45]} 13. cxd4 {[%clk 0:02:37]}  Ba6 {[%clk 0:02:44]} 14. a3 {[%clk 0:02:37]}  O-O {[%clk 0:02:39]} 15. Rac1 {[%clk 0:02:34]}  Bxd3 {[%clk 0:02:33]} 16. Qxd3 {[%clk 0:02:35]}  Ra7 {[%clk 0:02:24]} 17. Rc3 {[%clk 0:02:33]}  f6 {[%clk 0:02:19]} 18. exf6 {[%clk 0:02:31]}  Qxf6 {[%clk 0:02:19]} 19. Re1 {[%clk 0:02:25]}  Rb7 {[%clk 0:02:17]} 20. Qb5 {[%clk 0:02:24]}  Rf7 {[%clk 0:02:12]} 21. Nf1 {[%clk 0:02:20]}  Nf8 {[%clk 0:02:10]} 22. N1h2 {[%clk 0:02:07]}  Nbd7 {[%clk 0:02:08]} 23. Rc8 {[%clk 0:01:59]}  Qf5 {[%clk 0:01:38]} 24. Qc6 {[%clk 0:01:52]}  Rb8 {[%clk 0:01:28]} 25. Rxb8 {[%clk 0:01:50]}  Nxb8 {[%clk 0:01:29]} 26. Qxb6 {[%clk 0:01:50]}  Nbd7 {[%clk 0:01:30]} 27. Qxa5 {[%clk 0:01:50]}  Nf6 {[%clk 0:01:24]} 28. Nf1 {[%clk 0:01:45]}  Ne4 {[%clk 0:01:23]} 29. Ng3 {[%clk 0:01:44]}  Nxg3 {[%clk 0:01:22]} 30. fxg3 {[%clk 0:01:44]}  Qg4 {[%clk 0:01:19]} 31. Kh2 {[%clk 0:01:43]}  Rxf3 {[%clk 0:00:59]} 32. gxf3 {[%clk 0:01:44]}  Qxd4 {[%clk 0:00:59]} 33. Re2 {[%clk 0:01:42]}  e5 {[%clk 0:00:55]} 34. Qd2 {[%clk 0:01:40]}  Qc4 {[%clk 0:00:49]} 35. Rxe5 {[%clk 0:01:39]}  d4 {[%clk 0:00:49]} 36. Re4 {[%clk 0:01:36]}  Ne6 {[%clk 0:00:50]} 37. Qe2 {[%clk 0:01:36]}  Qxe2+ {[%clk 0:00:46]} 38. Rxe2 {[%clk 0:01:35]}  Nc5 {[%clk 0:00:42]} 39. Rd2 {[%clk 0:01:35]} 1-0


[Site "https://www.chess.com"]

[Event "Titled Tuesday Blitz August 3 2021"]
[White "Kavyev, Ruslan"]
[Black "Sanal, Vahap"]
[WhiteFideId "34110981"]
[BlackFideId "6300545"]
[WhiteElo "2172"]
[BlackElo "2495"]
[Result "0-1"]
[Round "02"]
[TimeControl "180+1"]
[Date "2021.08.03"]
[WhiteClock "0:00:32"]
[BlackClock "0:01:29"]

1. d4 {[%clk 0:03:00]}  Nf6 {[%clk 0:02:57]} 2. c4 {[%clk 0:02:58]}  e6 {[%clk 0:02:57]} 3. g3 {[%clk 0:02:56]}  d5 {[%clk 0:02:55]} 4. Nf3 {[%clk 0:02:53]}  c6 {[%clk 0:02:55]} 5. Bg2 {[%clk 0:02:54]}  Nbd7 {[%clk 0:02:54]} 6. Qc2 {[%clk 0:02:54]}  b6 {[%clk 0:02:51]} 7. O-O {[%clk 0:02:53]}  Ba6 {[%clk 0:02:51]} 8. Nbd2 {[%clk 0:02:50]}  Be7 {[%clk 0:02:51]} 9. b3 {[%clk 0:02:48]}  O-O {[%clk 0:02:51]} 10. e4 {[%clk 0:02:48]}  Rc8 {[%clk 0:02:50]} 11. Bb2 {[%clk 0:02:44]}  Bb7 {[%clk 0:02:45]} 12. Rfd1 {[%clk 0:02:42]}  Qc7 {[%clk 0:02:42]} 13. Rac1 {[%clk 0:02:41]}  Qb8 {[%clk 0:02:42]} 14. h4 {[%clk 0:02:33]}  c5 {[%clk 0:02:41]} 15. exd5 {[%clk 0:02:33]}  exd5 {[%clk 0:02:41]} 16. Qf5 {[%clk 0:02:33]}  Rfe8 {[%clk 0:02:27]} 17. h5 {[%clk 0:02:23]}  g6 {[%clk 0:02:17]} 18. hxg6 {[%clk 0:02:20]}  hxg6 {[%clk 0:02:17]} 19. Qh3 {[%clk 0:02:21]}  Kg7 {[%clk 0:02:04]} 20. dxc5 {[%clk 0:02:04]}  Nxc5 {[%clk 0:02:04]} 21. cxd5 {[%clk 0:01:34]}  Nd3 {[%clk 0:01:59]} 22. d6 {[%clk 0:01:17]}  Nxb2 {[%clk 0:01:57]} 23. d7 {[%clk 0:00:52]}  Nxd7 {[%clk 0:01:43]} 24. Qxd7 {[%clk 0:00:39]}  Nxd1 {[%clk 0:01:41]} 25. Rxd1 {[%clk 0:00:39]}  Rcd8 {[%clk 0:01:40]} 26. Qg4 {[%clk 0:00:38]}  Bf6 {[%clk 0:01:36]} 27. Nh4 {[%clk 0:00:32]}  Bxh4 {[%clk 0:01:30]} 28. Qxh4 {[%clk 0:00:32]}  Bxg2 {[%clk 0:01:31]} 29. Kxg2 {[%clk 0:00:32]}  Qb7+ {[%clk 0:01:31]} 30. Kg1 {[%clk 0:00:32]}  Rxd2 {[%clk 0:01:29]} 0-1


[Site "https://www.chess.com"]

[Event "Titled Tuesday Blitz August 3 2021"]
[White "Khoroshev, Nikita"]
[Black "Praggnanandhaa R"]
[WhiteFideId "14200287"]
[BlackFideId "25059530"]
[WhiteElo "2328"]
[BlackElo "2555"]
[Result "0-1"]
[Round "02"]
[TimeControl "180+1"]
[Date "2021.08.03"]
[WhiteClock "0:00:25"]
[BlackClock "0:01:18"]

1. d4 {[%clk 0:03:00]}  Nf6 {[%clk 0:03:00]} 2. c4 {[%clk 0:03:01]}  Nc6 {[%clk 0:02:59]} 3. Nf3 {[%clk 0:02:59]}  e6 {[%clk 0:02:59]} 4. Nc3 {[%clk 0:02:56]}  Bb4 {[%clk 0:02:59]} 5. Bd2 {[%clk 0:02:55]}  d6 {[%clk 0:02:59]} 6. e3 {[%clk 0:02:55]}  O-O {[%clk 0:02:59]} 7. Be2 {[%clk 0:02:54]}  e5 {[%clk 0:02:59]} 8. O-O {[%clk 0:02:53]}  Re8 {[%clk 0:02:56]} 9. a3 {[%clk 0:02:53]}  Bxc3 {[%clk 0:02:56]} 10. Bxc3 {[%clk 0:02:54]}  Bg4 {[%clk 0:02:55]} 11. h3 {[%clk 0:02:51]}  Bh5 {[%clk 0:02:55]} 12. dxe5 {[%clk 0:02:49]}  dxe5 {[%clk 0:02:55]} 13. Qxd8 {[%clk 0:02:49]}  Raxd8 {[%clk 0:02:56]} 14. Rfd1 {[%clk 0:02:49]}  Rxd1+ {[%clk 0:02:31]} 15. Rxd1 {[%clk 0:02:49]}  Ne4 {[%clk 0:02:26]} 16. Be1 {[%clk 0:02:46]}  Ng5 {[%clk 0:02:24]} 17. Kf1 {[%clk 0:02:31]}  Bxf3 {[%clk 0:02:22]} 18. Bxf3 {[%clk 0:02:31]}  Nxf3 {[%clk 0:02:22]} 19. gxf3 {[%clk 0:02:32]}  Rd8 {[%clk 0:02:18]} 20. Rxd8+ {[%clk 0:02:28]}  Nxd8 {[%clk 0:02:19]} 21. Bc3 {[%clk 0:02:28]}  f6 {[%clk 0:02:19]} 22. Ke2 {[%clk 0:02:28]}  Kf7 {[%clk 0:02:20]} 23. Kd3 {[%clk 0:02:27]}  Kg6 {[%clk 0:02:20]} 24. Ke2 {[%clk 0:02:26]}  Kh5 {[%clk 0:02:20]} 25. Kf1 {[%clk 0:02:26]}  Ne6 {[%clk 0:02:20]} 26. Kg2 {[%clk 0:02:25]}  Kh4 {[%clk 0:02:20]} 27. Be1 {[%clk 0:02:21]}  c6 {[%clk 0:02:14]} 28. f4 {[%clk 0:02:11]}  exf4 {[%clk 0:02:14]} 29. f3+ {[%clk 0:02:12]}  Kh5 {[%clk 0:02:14]} 30. e4 {[%clk 0:02:12]}  g5 {[%clk 0:02:14]} 31. Bc3 {[%clk 0:02:11]}  Kg6 {[%clk 0:02:14]} 32. Kf2 {[%clk 0:02:11]}  h5 {[%clk 0:02:15]} 33. Ke2 {[%clk 0:02:10]}  Nd8 {[%clk 0:02:15]} 34. Bd4 {[%clk 0:02:09]}  b6 {[%clk 0:02:15]} 35. b4 {[%clk 0:02:07]}  Nf7 {[%clk 0:02:15]} 36. a4 {[%clk 0:01:25]}  g4 {[%clk 0:01:43]} 37. fxg4 {[%clk 0:01:22]}  hxg4 {[%clk 0:01:43]} 38. hxg4 {[%clk 0:01:22]}  Ne5 {[%clk 0:01:42]} 39. c5 {[%clk 0:01:20]}  bxc5 {[%clk 0:01:41]} 40. Bxc5 {[%clk 0:01:19]}  a6 {[%clk 0:01:41]} 41. Be7 {[%clk 0:01:11]}  Kg5 {[%clk 0:01:41]} 42. Bd8 {[%clk 0:01:11]}  Nxg4 {[%clk 0:01:41]} 43. Kf3 {[%clk 0:01:08]}  Ne5+ {[%clk 0:01:41]} 44. Ke2 {[%clk 0:01:08]}  f3+ {[%clk 0:01:41]} 45. Ke3 {[%clk 0:01:07]}  Kh5 {[%clk 0:01:30]} 46. Be7 {[%clk 0:01:02]}  Kg6 {[%clk 0:01:24]} 47. Bd8 {[%clk 0:01:02]}  Kg5 {[%clk 0:01:23]} 48. Be7 {[%clk 0:01:01]}  Kg4 {[%clk 0:01:19]} 49. Bxf6 {[%clk 0:01:00]}  Kg3 {[%clk 0:01:20]} 50. Bxe5+ {[%clk 0:00:26]}  Kg2 {[%clk 0:01:19]} 51. Bd4 {[%clk 0:00:25]}  f2 {[%clk 0:01:18]} 52. a5 {[%clk 0:00:25]}  f1=Q {[%clk 0:01:18]} 53. Bc5 {[%clk 0:00:26]}  Qc4 {[%clk 0:01:16]} 54. Kf4 {[%clk 0:00:25]}  Qe6 {[%clk 0:01:16]} 55. e5 {[%clk 0:00:25]}  Kf1 {[%clk 0:01:17]} 56. Bd6 {[%clk 0:00:25]}  Ke2 {[%clk 0:01:17]} 57. Ke4 {[%clk 0:00:25]}  Kd2 {[%clk 0:01:18]} 58. Kd4 {[%clk 0:00:25]}  Qd5# {[%clk 0:01:18]} 0-1


[Site "https://www.chess.com"]

[Event "Titled Tuesday Blitz August 3 2021"]
[White "Kobalia, Mikhail"]
[Black "Perez Gormaz, Matias"]
[WhiteFideId "4119150"]
[BlackFideId "3406342"]
[WhiteElo "2569"]
[BlackElo "2414"]
[Result "1-0"]
[Round "02"]
[TimeControl "180+1"]
[Date "2021.08.03"]
[WhiteClock "0:00:20"]
[BlackClock "0:00:02"]

1. e4 {[%clk 0:02:55]}  c5 {[%clk 0:03:00]} 2. Nf3 {[%clk 0:02:55]}  d6 {[%clk 0:03:00]} 3. Bb5+ {[%clk 0:02:54]}  Bd7 {[%clk 0:02:59]} 4. Bxd7+ {[%clk 0:02:53]}  Nxd7 {[%clk 0:03:00]} 5. O-O {[%clk 0:02:53]}  Ngf6 {[%clk 0:03:00]} 6. Qe2 {[%clk 0:02:53]}  Rc8 {[%clk 0:03:00]} 7. Rd1 {[%clk 0:02:51]}  e6 {[%clk 0:02:58]} 8. c4 {[%clk 0:02:49]}  Qc7 {[%clk 0:02:51]} 9. b3 {[%clk 0:02:49]}  Ne5 {[%clk 0:02:42]} 10. Bb2 {[%clk 0:02:44]}  Nxf3+ {[%clk 0:02:37]} 11. Qxf3 {[%clk 0:02:43]}  Be7 {[%clk 0:02:38]} 12. d4 {[%clk 0:02:43]}  cxd4 {[%clk 0:02:38]} 13. Bxd4 {[%clk 0:02:42]}  a6 {[%clk 0:02:39]} 14. Nc3 {[%clk 0:02:41]}  O-O {[%clk 0:02:37]} 15. Rac1 {[%clk 0:02:40]}  Qa5 {[%clk 0:02:35]} 16. Qe2 {[%clk 0:02:38]}  Rfd8 {[%clk 0:01:58]} 17. f4 {[%clk 0:02:28]}  Qh5 {[%clk 0:01:55]} 18. Qd3 {[%clk 0:02:19]}  Nd7 {[%clk 0:01:53]} 19. Bf2 {[%clk 0:02:16]}  Nc5 {[%clk 0:01:38]} 20. Qd2 {[%clk 0:02:13]}  Bf6 {[%clk 0:01:33]} 21. Re1 {[%clk 0:02:10]}  h6 {[%clk 0:01:28]} 22. Bd4 {[%clk 0:02:09]}  Bxd4+ {[%clk 0:01:15]} 23. Qxd4 {[%clk 0:02:08]}  e5 {[%clk 0:00:44]} 24. Qd5 {[%clk 0:01:58]}  Qg4 {[%clk 0:00:39]} 25. f5 {[%clk 0:01:57]}  Nd7 {[%clk 0:00:28]} 26. Re3 {[%clk 0:01:56]}  Qf4 {[%clk 0:00:20]} 27. Qd3 {[%clk 0:01:52]}  Nc5 {[%clk 0:00:18]} 28. Qe2 {[%clk 0:01:51]}  Nd7 {[%clk 0:00:18]} 29. Rf1 {[%clk 0:01:46]}  Qg5 {[%clk 0:00:18]} 30. Rg3 {[%clk 0:01:46]}  Qe7 {[%clk 0:00:17]} 31. Nd5 {[%clk 0:01:45]}  Qf8 {[%clk 0:00:17]} 32. f6 {[%clk 0:01:45]}  g6 {[%clk 0:00:18]} 33. Ne7+ {[%clk 0:01:41]}  Kh7 {[%clk 0:00:18]} 34. Nxc8 {[%clk 0:01:21]}  Rxc8 {[%clk 0:00:18]} 35. Qg4 {[%clk 0:01:16]}  Nc5 {[%clk 0:00:17]} 36. Rd1 {[%clk 0:01:13]}  Ne6 {[%clk 0:00:17]} 37. Rh3 {[%clk 0:01:10]}  h5 {[%clk 0:00:16]} 38. Qh4 {[%clk 0:01:01]}  Nf4 {[%clk 0:00:12]} 39. Rf3 {[%clk 0:00:58]}  Ne2+ {[%clk 0:00:09]} 40. Kh1 {[%clk 0:00:57]}  Nd4 {[%clk 0:00:09]} 41. Rg3 {[%clk 0:00:55]}  Qh6 {[%clk 0:00:09]} 42. Rf1 {[%clk 0:00:50]}  b5 {[%clk 0:00:09]} 43. cxb5 {[%clk 0:00:48]}  axb5 {[%clk 0:00:10]} 44. a4 {[%clk 0:00:45]}  b4 {[%clk 0:00:08]} 45. Qh3 {[%clk 0:00:41]}  Rc1 {[%clk 0:00:04]} 46. Rf3 {[%clk 0:00:35]}  Nxf3 {[%clk 0:00:04]} 47. Qxf3 {[%clk 0:00:35]}  Qd2 {[%clk 0:00:04]} 48. h3 {[%clk 0:00:34]}  Rxf1+ {[%clk 0:00:03]} 49. Qxf1 {[%clk 0:00:34]}  Qc3 {[%clk 0:00:03]} 50. Qd1 {[%clk 0:00:31]}  Kh6 {[%clk 0:00:01]} 51. a5 {[%clk 0:00:29]}  Qc5 {[%clk 0:00:01]} 52. Qa1 {[%clk 0:00:24]}  g5 {[%clk 0:00:01]} 53. a6 {[%clk 0:00:24]}  Qa7 {[%clk 0:00:02]} 54. Kh2 {[%clk 0:00:22]}  Kg6 {[%clk 0:00:02]} 55. Qa5 {[%clk 0:00:20]} 1-0


[Site "https://www.chess.com"]

[Event "Titled Tuesday Blitz August 3 2021"]
[White "Korchmar, Vasiliy"]
[Black "Kalashian, David"]
[WhiteFideId "24131750"]
[BlackFideId "13302418"]
[WhiteElo "2370"]
[BlackElo "2490"]
[Result "0-1"]
[Round "02"]
[TimeControl "180+1"]
[Date "2021.08.03"]
[WhiteClock "0:00:14"]
[BlackClock "0:01:10"]

1. d4 {[%clk 0:03:00]}  Nf6 {[%clk 0:02:59]} 2. Nf3 {[%clk 0:03:01]}  e6 {[%clk 0:02:59]} 3. Bf4 {[%clk 0:03:01]}  b6 {[%clk 0:02:59]} 4. e3 {[%clk 0:03:01]}  Bb7 {[%clk 0:02:59]} 5. Nbd2 {[%clk 0:03:01]}  Be7 {[%clk 0:03:00]} 6. h3 {[%clk 0:03:01]}  O-O {[%clk 0:03:00]} 7. Bd3 {[%clk 0:02:59]}  c5 {[%clk 0:03:00]} 8. c3 {[%clk 0:02:59]}  cxd4 {[%clk 0:03:00]} 9. cxd4 {[%clk 0:02:59]}  d6 {[%clk 0:03:01]} 10. a3 {[%clk 0:02:59]}  a6 {[%clk 0:02:59]} 11. Qe2 {[%clk 0:02:59]}  Re8 {[%clk 0:02:59]} 12. Rd1 {[%clk 0:02:54]}  Nbd7 {[%clk 0:02:59]} 13. e4 {[%clk 0:02:53]}  Nf8 {[%clk 0:02:57]} 14. e5 {[%clk 0:02:53]}  Nd5 {[%clk 0:02:54]} 15. Bg3 {[%clk 0:02:53]}  Ng6 {[%clk 0:02:54]} 16. Bxg6 {[%clk 0:02:39]}  hxg6 {[%clk 0:02:52]} 17. O-O {[%clk 0:02:39]}  Rc8 {[%clk 0:02:17]} 18. Ne4 {[%clk 0:02:38]}  dxe5 {[%clk 0:02:15]} 19. dxe5 {[%clk 0:02:38]}  Bf8 {[%clk 0:02:12]} 20. Nfg5 {[%clk 0:02:30]}  f5 {[%clk 0:02:03]} 21. exf6 {[%clk 0:02:29]}  gxf6 {[%clk 0:02:03]} 22. Nf3 {[%clk 0:02:14]}  e5 {[%clk 0:01:50]} 23. Nh4 {[%clk 0:01:51]}  f5 {[%clk 0:01:38]} 24. Nxg6 {[%clk 0:01:13]}  fxe4 {[%clk 0:01:38]} 25. Qg4 {[%clk 0:01:13]}  Bg7 {[%clk 0:01:35]} 26. Bxe5 {[%clk 0:01:01]}  Rc7 {[%clk 0:01:18]} 27. Bxc7 {[%clk 0:00:54]}  Qxc7 {[%clk 0:01:19]} 28. Rfe1 {[%clk 0:00:36]}  e3 {[%clk 0:01:18]} 29. fxe3 {[%clk 0:00:27]}  Nxe3 {[%clk 0:01:18]} 30. Rd7 {[%clk 0:00:27]}  Qc5 {[%clk 0:01:11]} 31. Rxg7+ {[%clk 0:00:19]}  Kxg7 {[%clk 0:01:10]} 32. Ne5+ {[%clk 0:00:14]}  Nxg4+ {[%clk 0:01:10]} 0-1


[Site "https://www.chess.com"]

[Event "Titled Tuesday Blitz August 3 2021"]
[White "Kretov, Evgenij"]
[Black "Labussiere, Victor"]
[WhiteFideId "4167821"]
[BlackFideId "2183129"]
[WhiteElo "2400"]
[BlackElo "1921"]
[Result "0-1"]
[Round "02"]
[TimeControl "180+1"]
[Date "2021.08.03"]
[WhiteClock "0:00:18"]
[BlackClock "0:00:30"]

1. d4 {[%clk 0:03:00]}  d5 {[%clk 0:02:57]} 2. c4 {[%clk 0:03:01]}  dxc4 {[%clk 0:02:57]} 3. Nf3 {[%clk 0:03:00]}  Nf6 {[%clk 0:02:57]} 4. e3 {[%clk 0:03:00]}  e6 {[%clk 0:02:56]} 5. Bxc4 {[%clk 0:03:01]}  c5 {[%clk 0:02:54]} 6. O-O {[%clk 0:03:01]}  a6 {[%clk 0:02:55]} 7. e4 {[%clk 0:03:01]}  cxd4 {[%clk 0:02:49]} 8. e5 {[%clk 0:03:01]}  Nd5 {[%clk 0:02:45]} 9. Qxd4 {[%clk 0:03:01]}  Nc6 {[%clk 0:02:44]} 10. Qg4 {[%clk 0:03:01]}  b5 {[%clk 0:02:41]} 11. Bxd5 {[%clk 0:02:43]}  exd5 {[%clk 0:02:37]} 12. Qg3 {[%clk 0:02:43]}  Be6 {[%clk 0:02:33]} 13. Bg5 {[%clk 0:02:41]}  Qb6 {[%clk 0:02:26]} 14. Nc3 {[%clk 0:02:32]}  Bb4 {[%clk 0:02:08]} 15. Rad1 {[%clk 0:02:23]}  Bxc3 {[%clk 0:01:58]} 16. bxc3 {[%clk 0:02:23]}  Rg8 {[%clk 0:01:48]} 17. Nd4 {[%clk 0:02:20]}  Nxd4 {[%clk 0:01:29]} 18. cxd4 {[%clk 0:02:20]}  Kd7 {[%clk 0:01:28]} 19. f4 {[%clk 0:02:19]}  Bf5 {[%clk 0:01:12]} 20. Qf3 {[%clk 0:02:11]}  Qe6 {[%clk 0:01:12]} 21. h3 {[%clk 0:02:10]}  Be4 {[%clk 0:01:10]} 22. Qe2 {[%clk 0:02:07]}  f5 {[%clk 0:01:08]} 23. a4 {[%clk 0:01:58]}  Rgb8 {[%clk 0:01:03]} 24. axb5 {[%clk 0:01:50]}  Rxb5 {[%clk 0:01:04]} 25. Ra1 {[%clk 0:01:48]}  Qb6 {[%clk 0:01:03]} 26. Kh2 {[%clk 0:01:42]}  Rb2 {[%clk 0:01:01]} 27. e6+ {[%clk 0:01:16]}  Kxe6 {[%clk 0:00:56]} 28. Rab1 {[%clk 0:00:55]}  Rxb1 {[%clk 0:00:51]} 29. Rf2 {[%clk 0:00:47]}  Rb8 {[%clk 0:00:47]} 30. Qh5 {[%clk 0:00:46]}  Qxd4 {[%clk 0:00:41]} 31. Qxh7 {[%clk 0:00:42]}  Qxf2 {[%clk 0:00:39]} 32. Qg6+ {[%clk 0:00:42]}  Kd7 {[%clk 0:00:38]} 33. Qf7+ {[%clk 0:00:42]}  Kc6 {[%clk 0:00:39]} 34. Qe6+ {[%clk 0:00:40]}  Kb5 {[%clk 0:00:39]} 35. Qd7+ {[%clk 0:00:39]}  Kc4 {[%clk 0:00:40]} 36. Qc6+ {[%clk 0:00:37]}  Qc5 {[%clk 0:00:38]} 37. Qxa6+ {[%clk 0:00:36]}  R8b5 {[%clk 0:00:38]} 38. Qa2+ {[%clk 0:00:28]}  R5b3 {[%clk 0:00:37]} 39. Qa6+ {[%clk 0:00:25]}  Qb5 {[%clk 0:00:36]} 40. Qc8+ {[%clk 0:00:24]}  Kd3 {[%clk 0:00:36]} 41. Bh4 {[%clk 0:00:24]}  Qb6 {[%clk 0:00:31]} 42. Kg3 {[%clk 0:00:18]}  Ke2+ {[%clk 0:00:30]} 43. Kh2 {[%clk 0:00:18]}  Qg1# {[%clk 0:00:30]} 0-1


[Site "https://www.chess.com"]